[Event "Athens of East GM-Open 2019"]
[Site "Madurai"]
[Date "2019.08.18"]
[Round "10.15"]
[White "Hari Madhavan N B"]
[Black "Dhanush Ragav N S"]
[Result "1-0"]
[ECO "D45"]
[WhiteElo "2231"]
[BlackElo "1753"]
[Annotator "ChessBase"]
[PlyCount "89"]
[EventDate "2019.08.11"]
[EventType "swiss"]
[EventCountry "IND"]
[SourceTitle "playchess.com"]
[Source "ChessBase"]
[SourceQuality "1"]
[TimeControl "5400+30"]

1. d4 {[%emt 1:30:30]} d5 {[%emt 1:30:30]} 2. c4 {[%emt 0:00:30]} c6 {[%emt 0:00:30]} 3. e3 {[%emt 0:00:30]} Nf6 {[%emt 0:00:30]} 4. Nf3 {[%emt 0:00:30]} e6 {[%emt 0:00:30]} 5. Nc3 {[%emt 0:00:30]} Nbd7 {[%emt 0:00:30]} 6. Qc2 {[%emt 0:00:30]} Bd6 {[%emt 0:00:30]} 7. cxd5 {[%emt 0:00:30]} exd5 {[%emt 0:00:30]} 8. Bd3 {[%emt 0:00:30]} O-O {[%emt 0:00:30]} 9. O-O {[%emt 0:00:30]} Re8 {[%emt 0:00:30]} 10. Re1 {[%emt 0:00:30]} h6 {[%emt 0:00:30]} 11. Bd2 {[%emt 0:00:30]} Nf8 {[%emt 0:00:30]} 12. h3 {[%emt 0:00:30]} Qe7 {[%emt 0:00:30]} 13. e4 {[%emt 0:00:30]} dxe4 {[%emt 0:00:30]} 14. Nxe4 {[%emt 0:00:30]} Nxe4 {[%emt 0:00:30]} 15. Bxe4 {[%emt 0:00:30]} Be6 {[%emt 0:00:30]} 16. d5 {[%emt 0:00:30]} cxd5 {[%emt 0:00:30]} 17. Bxd5 {[%emt 0:00:30]} Qd7 {[%emt 0:00:30]} 18. Bxe6 {[%emt 0:00:30]} Rxe6 {[%emt 0:00:30]} 19. Bc3 {[%emt 0:00:30]} Rae8 {[%emt 0:00:30]} 20. Rxe6 {[%emt 0:00:30]} Nxe6 {[%emt 0:00:30]} 21. Qf5 {[%emt 0:00:30]} Rd8 {[%emt 0:00:30]} 22. Ne5 {[%emt 0:00:30]} Bxe5 {[%emt 0:00:30]} 23. Qxe5 {[%emt 0:00:30]} Qd5 {[%emt 0:00:30]} 24. Qe3 {[%emt 0:00:30]} Qc5 {[%emt 0:00:30]} 25. Qe2 {[%emt 0:00:30]} Qd5 {[%emt 0:00:30]} 26. Re1 {[%emt 0:00:30]} a6 {[%emt 0:00:30]} 27. a3 {[%emt 0:00:30]} Qf5 {[%emt 0:00:30]} 28. Qe3 {[%emt 0:00:30]} Rd3 {[%emt 0:00:30]} 29. Qb6 {[%emt 0:00:30]} Qd5 {[%emt 0:00:30]} 30. Re5 {[%emt 0:00:30]} Qc4 {[%emt 0:00:30]} 31. Qxb7 {[%emt 0:00:30]} Rd1+ {[%emt 0:00:30]} 32. Re1 {[%emt 0:00:30]} Rxe1+ {[%emt 0:00:30]} 33. Bxe1 {[%emt 0:00:30]} Nf4 {[%emt 0:00:30]} 34. Qa8+ {[%emt 0:00:30]} Kh7 {[%emt 0:00:30]} 35. Qf3 {[%emt 0:00:30]} Qc1 {[%emt 0:00:30]} 36. Qe3 {[%emt 0:00:30]} Qxe3 {[%emt 0:00:30]} 37. fxe3 {[%emt 0:00:30]} Ne6 {[%emt 0:00:30]} 38. Kf2 {[%emt 0:00:30]} Kg6 {[%emt 0:00:30]} 39. e4 {[%emt 0:00:30]} f5 {[%emt 0:00:30]} 40. Ke3 {[%emt 0:00:30]} Kg5 {[%emt 0:00:30]} 41. b4 {[%emt 0:00:30]} Nf4 {[%emt 0:00:30]} 42. Bh4+ {[%emt 0:00:30]} Kxh4 {[%emt 0:00:30]} 43. Kxf4 {[%emt 0:00:30]} fxe4 {[%emt 0:00:30]} 44. a4 {[%emt 0:00:30]} e3 {[%emt 0:00:30]} 45. Kxe3 {[%emt 0:00:30]} 1-0

[Event "Athens of East GM-Open 2019"]
[Site "Madurai"]
[Date "2019.08.18"]
[Round "10.16"]
[White "Jayachandra Srinivas Vellanki"]
[Black "Rathnakaran, K.."]
[Result "1/2-1/2"]
[ECO "A42"]
[WhiteElo "1963"]
[BlackElo "2344"]
[Annotator "NA"]
[PlyCount "96"]
[EventDate "2019.08.11"]
[EventType "swiss"]
[EventCountry "IND"]
[SourceTitle "playchess.com"]
[Source "ChessBase"]
[SourceQuality "1"]
[TimeControl "5400+30"]

1. d4 {[%emt 1:30:30]} g6 {[%emt 0:05:43]} 2. c4 {[%emt 0:00:00]} Bg7 {[%emt 0:00:05]} 3. Nc3 {[%emt 0:00:00]} d6 {[%emt 0:00:04]} 4. e4 {[%emt 0:00:00]} Nc6 {[%emt 0:00:04]} 5. Be3 {[%emt 0:00:00]} e5 {[%emt 0:00:06]} 6. d5 {[%emt 0:00:00]} Nce7 {[%emt 0:00:15]} 7. Nge2 {[%emt 0:00:00]} f5 {[%emt 0:00:06]} 8. f3 {[%emt 0:00:00]} Nf6 {[%emt 0:00:03]} 9. h3 {[%emt 0:00:00]} O-O {[%emt 0:00:22]} 10. Qd2 {[%emt 0:00:00]} c6 {[%emt 0:00:05] A42: Modern Defence: Averbakh Variation} (10... a6 11. a4 a5 12. c5 dxc5 13. Bxc5 b6 14. Be3 Bd7 15. d6 cxd6 16. Qxd6 Nc8 17. Qxe5 Re8 18. Qd4 fxe4 19. fxe4 {1-0 (35) Morovic Fernandez,I (2528)-Martinez Duany,L (2511) Santa Maria del Mar 2017}) 11. g4 {[%emt 0:00:00]} cxd5 {[%emt 0:00:36]} 12. cxd5 {[%emt 0:00:00]} f4 $146 {[%emt 0:00:17]} ({Predecessor:} 12... Bd7 13. a4 Nc8 14. Nc1 fxe4 15. fxe4 Nb6 16. a5 Nc8 17. Bd3 {½-½ (34) Lovass,I (2282)-Kopasz,R (2346) Hungary 2005}) 13. Bf2 {[%emt 0:00:00]} Bd7 {[%emt 0:00:04]} 14. Nc1 {[%emt 0:00:00]} a6 {[%emt 0:00:05]} 15. a4 {[%emt 0:00:00]} Rc8 {[%emt 0:00:12]} 16. Be2 {[%emt 0:00:00]} h5 {[%emt 0:00:08]} 17. g5 {[%emt 0:00:00]} Nh7 {[%emt 0:02:18]} 18. h4 {[%emt 0:00:00]} Rf7 {[%emt 0:00:04]} 19. Nb3 {[%emt 0:00:00]} Bf8 {[%emt 0:01:11]} 20. a5 {[%emt 0:00:00]} Qe8 {[%emt 0:00:07]} 21. O-O {[%emt 0:00:00]} Rb8 {[%emt 0:00:34]} 22. Rfc1 {[%emt 0:00:00]} Nc8 {[%emt 0:00:07]} 23. Qd1 {[%emt 0:00:00]} Be7 {[%emt 0:00:06]} 24. Nd2 {[%emt 0:00:00]} Bxg5 {[%emt 0:03:07]} 25. hxg5 {[%emt 0:00:00]} Nxg5 {[%emt 0:00:04]} 26. Kf1 {[%emt 0:00:00]} Nh3 {[%emt 0:00:46] [#]} 27. Bd3 {[%emt 0:00:00]} (27. Qb3 $1 $16) 27... Qd8 {[%emt 0:01:17]} ({Black should try} 27... Rg7 $15) 28. Qe1 {[%emt 0:00:00]} g5 {[%emt 0:00:25]} 29. Ke2 {[%emt 0:00:00]} g4 {[%emt 0:01:43]} 30. Bh4 {[%emt 0:00:00]} Qe8 {[%emt 0:03:04]} 31. Kd1 {[%emt 0:00:00]} g3 {[%emt 0:01:16]} 32. Nc4 {[%emt 0:00:00]} Rg7 {[%emt 0:00:58]} 33. Ne2 {[%emt 0:00:00]} Ba4+ {[%emt 0:07:39]} 34. Kd2 {[%emt 0:00:00]} b6 {[%emt 0:00:29]} 35. Rc3 {[%emt 0:00:00]} bxa5 {[%emt 0:01:25]} 36. Qc1 {[%emt 0:00:00]} Bb5 {[%emt 0:06:11]} 37. b3 {[%emt 0:00:00]} (37. Nxa5 $5 {[%cal Rd3b5]} Bxd3 38. Rxd3 $11) 37... a4 {[%emt 0:01:09] [#]} (37... Nf2 $1 $11 {keeps the balance.}) 38. bxa4 $1 {[%emt 0:00:00]} Bxa4 {[%emt 0:00:12]} 39. Qa3 {[%emt 0:00:00]} Bb5 {[%emt 0:00:14]} 40. Nxd6 {[%emt 0:00:00]} Nxd6 {[%emt 0:00:05]} 41. Qxd6 {[%emt 0:00:00]} Bxd3 {[%emt 0:00:01]} 42. Kxd3 {[%emt 0:00:00]} Rb2 $2 {[%emt 0:00:56]} (42... Qb5+ $11 {and Black is okay.} 43. Kd2 g2 44. Qe6+ {[%mdl 64] Double Attack} (44. Qxe5 g1=Q $11) 44... Kh7 45. Qxh3 (45. Qf5+ Kg8 $11) 45... Qb2+ {[%mdl 64] Double Attack} 46. Kd3 Qxa1 47. Qf5+ {[%mdl 64] Double Attack} Kg8 48. Rc8+ (48. Qe6+ Kh7 $11) 48... Rxc8 49. Qxc8+ Kh7 50. Qf5+ {[%mdl 64] Double Attack} Kg8 51. Qc8+ Kh7 52. Qf5+ {[%mdl 64] Double Attack} Kg8 53. Qc8+) 43. Rc6 {[%emt 0:00:56]} Nf2+ {[%emt 0:35:07] [#]} 44. Kc3 $1 {[%emt 0:00:26]} Rgb7 {[%emt 0:02:33] [#]} (44... Rxe2 $11 {keeps the balance.} 45. Qe6+ Qxe6 46. dxe6 Kh7) 45. Raxa6 $11 {[%emt 0:03:48]} (45. Be7 $1 $16 {[%mdl 512]} R2b3+ (45... Rxe7 46. Kxb2) 46. Kc4) 45... Nd1+ {[%emt 0:10:34]} 46. Kd3 {[%emt 0:00:14]} Nf2+ {[%emt 0:00:16]} 47. Kc3 {[%emt 0:00:05]} Nd1+ {[%emt 0:03:11]} 48. Kd3 {[%emt 0:18:01]} Nf2+ {[%emt 0:18:36] Qa3 Rb8+} 1/2-1/2

[Event "Athens of East GM-Open 2019"]
[Site "Madurai"]
[Date "2019.08.18"]
[Round "10.17"]
[White "Rakesh, Kumar Nayak"]
[Black "Prasannaa.s"]
[Result "0-1"]
[ECO "B25"]
[WhiteElo "2042"]
[BlackElo "2233"]
[Annotator "NA"]
[PlyCount "106"]
[EventDate "2019.08.11"]
[EventType "swiss"]
[EventCountry "IND"]
[SourceTitle "playchess.com"]
[Source "ChessBase"]
[SourceQuality "1"]
[TimeControl "5400+30"]

1. e4 {[%emt 0:00:32]} c5 {[%emt 0:01:39]} 2. Nc3 {[%emt 0:00:14]} Nc6 {[%emt 0:00:14]} 3. g3 {[%emt 0:00:21]} g6 {[%emt 0:00:21]} 4. Bg2 {[%emt 0:00:11]} Bg7 {[%emt 0:00:04]} 5. Nge2 {[%emt 0:00:20]} d6 {[%emt 0:00:08]} 6. d3 {[%emt 0:00:23]} e6 {[%emt 0:00:15]} 7. O-O {[%emt 0:00:55]} Nge7 {[%emt 0:00:07]} 8. Bd2 {[%emt 0:12:03]} O-O {[%emt 0:00:15]} 9. Qc1 {[%emt 0:00:03]} Nd4 {[%emt 0:01:06]} 10. Nxd4 {[%emt 0:00:50]} cxd4 {[%emt 0:00:07] B25: Closed Sicilian: 3 g3, lines without early Be3} 11. Ne2 {[%emt 0:01:04]} d5 $146 {[%emt 0:03:01]} ({Predecessor:} 11... e5 12. c3 dxc3 13. Bxc3 Bg4 14. Qe3 d5 15. Bb4 d4 16. Qd2 Re8 17. h3 Be6 18. f4 {½-½ (72) Grigoriev,A (2187)-Petrov,M (2493) Cesme 2015}) 12. Bh6 {[%emt 0:35:13]} dxe4 {[%emt 0:00:34]} 13. dxe4 {[%emt 0:01:57]} e5 {[%emt 0:00:12]} 14. h3 {[%emt 0:00:38]} (14. Bxg7 $11 Kxg7 15. Qd2) 14... Be6 {[%emt 0:01:19]} 15. b3 {[%emt 0:03:20]} Rc8 {[%emt 0:08:25]} 16. Bxg7 {[%emt 0:00:33]} Kxg7 {[%emt 0:00:08]} 17. Qd2 {[%emt 0:00:23]} Qd7 {[%emt 0:02:44]} 18. Kh2 {[%emt 0:02:08]} Rfd8 {[%emt 0:00:11]} 19. Rad1 {[%emt 0:06:50]} Nc6 {[%emt 0:10:28]} 20. f4 {[%emt 0:00:45]} f6 {[%emt 0:00:08]} 21. Nc1 {[%emt 0:05:10]} exf4 {[%emt 0:11:24]} 22. Qxf4 {[%emt 0:01:50]} Qe7 {[%emt 0:00:15]} 23. Nd3 {[%emt 0:00:54]} Bf7 {[%emt 0:00:39]} 24. Rf2 {[%emt 0:06:59]} g5 {[%emt 0:00:58]} 25. Qd2 {[%emt 0:02:01]} Bg6 {[%emt 0:00:52]} 26. Rdf1 {[%emt 0:00:11]} Rd6 {[%emt 0:00:44]} 27. c4 {[%emt 0:07:33]} Re6 {[%emt 0:09:01]} ({Much worse is} 27... Bxe4 $6 28. Bxe4 Qxe4 29. Re1 $11) (27... dxc3 $1 $17 28. Qxc3 Rc7) 28. h4 {[%emt 0:04:09]} gxh4 {[%emt 0:04:27]} 29. gxh4 {[%emt 0:01:11]} Ne5 {[%emt 0:00:46]} 30. Bh3 {[%emt 0:03:42]} Nxd3 {[%emt 0:00:08]} 31. Bxe6 $4 {[%emt 0:01:54] [#]} (31. Qxd3 $17 Rxe4 32. Qg3) 31... Nxf2 $2 {[%emt 0:00:46]} ({Black should try} 31... Qd6+ $1 $19 32. Rf4 Nxf4 33. Rxf4 Qxe6 34. Qxd4 Re8) 32. Bxc8 {[%emt 0:00:02]} Qc7+ {[%emt 0:00:25]} 33. Kg2 {[%emt 0:00:10]} Nxe4 {[%emt 0:00:07]} 34. Qf4 $2 {[%emt 0:00:09]} (34. Qxd4 $17 Qxc8 35. Rf4) 34... Qxc8 {[%emt 0:04:52]} 35. h5 {[%emt 0:00:32] [#]} Qc6 $17 {[%emt 0:00:44]} (35... Be8 $1 $19 {has better winning chances.} 36. Re1 Ng5 37. Re7+ Kh6 38. Qxf6+ Kxh5) 36. hxg6 {[%emt 0:01:44]} hxg6 {[%emt 0:04:00]} 37. Qf3 {[%emt 0:00:38]} d3 {[%emt 0:00:18]} 38. Qxd3 {[%emt 0:00:44]} Nd2+ {[%emt 0:00:11]} 39. Kg1 {[%emt 0:00:26]} Nxf1 {[%emt 0:00:08]} 40. Kxf1 {[%emt 0:00:04]} g5 {[%emt 0:01:50]} 41. Qe3 {[%emt 0:00:50]} a6 {[%emt 0:00:08]} 42. c5 {[%emt 0:00:20]} Qh1+ {[%emt 0:01:02]} 43. Kf2 {[%emt 0:00:03]} Qh2+ {[%emt 0:00:06]} 44. Kf1 {[%emt 0:00:13]} Qf4+ {[%emt 0:00:06]} 45. Qxf4 {[%emt 0:00:09]} gxf4 {[%emt 0:00:01]} 46. b4 {[%emt 0:00:32]} Kf7 {[%emt 0:00:35]} 47. a4 {[%emt 0:00:47]} Ke6 {[%emt 0:00:06]} 48. b5 {[%emt 0:00:08]} axb5 {[%emt 0:02:03]} 49. axb5 {[%emt 0:00:02]} Kd5 {[%emt 0:00:06]} 50. c6 {[%emt 0:00:22]} bxc6 {[%emt 0:00:03]} 51. b6 {[%emt 0:01:33]} Kd6 {[%emt 0:00:03]} 52. Kf2 {[%emt 0:00:02]} c5 {[%emt 0:00:05]} 53. Kf3 {[%emt 0:00:01]} Ke5 {[%emt 0:38:05] Ke3} 0-1

[Event "Athens of East GM-Open 2019"]
[Site "Madurai"]
[Date "2019.08.18"]
[Round "10.18"]
[White "Ram, S. Krishnan"]
[Black "Pattnayak Nilsu"]
[Result "1-0"]
[ECO "E16"]
[WhiteElo "2192"]
[BlackElo "1967"]
[Annotator "NA"]
[PlyCount "149"]
[EventDate "2019.08.11"]
[EventType "swiss"]
[EventCountry "IND"]
[SourceTitle "playchess.com"]
[Source "ChessBase"]
[SourceQuality "1"]
[TimeControl "5400+30"]

1. Nf3 {[%emt 0:00:00]} Nf6 {[%emt 0:00:30]} 2. c4 {[%emt 0:00:00]} e6 {[%emt 0:00:06]} 3. g3 {[%emt 0:00:00]} b6 {[%emt 0:00:04]} 4. Bg2 {[%emt 0:00:00]} Bb7 {[%emt 0:00:04]} 5. O-O {[%emt 0:00:00]} g6 {[%emt 0:01:40]} 6. d4 {[%emt 0:00:24]} d6 {[%emt 0:00:06] E16: Queen's Indian: 4 g3 Bb7 5 Bg2 Bb4+} (6... Bg7 7. Nc3 Ne4 8. Nxe4 Bxe4 9. Ne5 Bxg2 10. Kxg2 c5 11. Be3 Bxe5 12. dxe5 Qc7 13. Bd2 Nc6 14. Bc3 O-O-O 15. f4 h5 16. e3 g5 {0-1 (39) Fedoseev,V (2731)-Rodshtein,M (2695) Tbilisi 2017}) 7. Nc3 {[%emt 0:00:09]} Bg7 {[%emt 0:00:05]} 8. d5 {[%emt 0:00:12]} e5 {[%emt 0:01:14]} 9. e4 {[%emt 0:03:01]} O-O {[%emt 0:03:22]} 10. Ne1 {[%emt 0:00:07]} Nbd7 {[%emt 0:05:24]} 11. Be3 {[%emt 0:06:30]} a5 {[%emt 0:01:30]} 12. a3 $146 {[%emt 0:03:07]} ({Predecessor:} 12. Nd3 Ba6 13. b3 Ne8 14. Rc1 Bc8 15. Kh1 Kh8 {1-0 (65) Grigoriev,A (2157)-Sahin,O (1664) Ordu 2017}) 12... Ba6 {[%emt 0:01:11]} 13. b3 {[%emt 0:00:39]} Nh5 {[%emt 0:01:08]} 14. Rc1 {[%emt 0:02:38]} Qe8 {[%emt 0:01:35]} 15. Nb5 {[%emt 0:00:46]} Rc8 {[%emt 0:00:43]} 16. Bf3 {[%emt 0:01:38]} Ndf6 {[%emt 0:09:30]} 17. Qd3 {[%emt 0:02:06]} Qd7 {[%emt 0:01:43]} 18. Qe2 {[%emt 0:04:01]} Ra8 {[%emt 0:09:06]} 19. Nc2 $16 {[%emt 0:02:00]} Ne8 {[%emt 0:08:05]} 20. Bxh5 {[%emt 0:01:09]} gxh5 {[%emt 0:00:05]} 21. Qxh5 {[%emt 0:00:06]} f5 {[%emt 0:14:44]} 22. exf5 {[%emt 0:00:34]} Rxf5 {[%emt 0:00:07]} 23. Qe2 {[%emt 0:05:43]} Qf7 {[%emt 0:00:21]} 24. Nc3 {[%emt 0:01:28]} Nf6 {[%emt 0:08:59]} 25. Bd2 {[%emt 0:04:02]} Re8 {[%emt 0:07:31]} 26. Ne3 {[%emt 0:05:35]} Rh5 {[%emt 0:00:09]} 27. f3 {[%emt 0:00:21]} Bc8 {[%emt 0:01:12]} 28. g4 {[%emt 0:08:02]} Rg5 {[%emt 0:05:00]} 29. Ng2 {[%emt 0:01:31]} Rg6 {[%emt 0:06:00]} 30. Nh4 {[%emt 0:00:29]} e4 {[%emt 0:02:24]} 31. Nxg6 {[%emt 0:00:12]} Qxg6 {[%emt 0:01:30]} 32. g5 {[%emt 0:01:54]} h6 {[%emt 0:02:15]} 33. Qg2 {[%emt 0:01:03]} e3 {[%emt 0:03:02]} 34. gxf6 {[%emt 0:02:20]} Qxg2+ {[%emt 0:00:38]} 35. Kxg2 {[%emt 0:00:01]} exd2 {[%emt 0:00:07]} 36. Rcd1 {[%emt 0:01:51]} Bxf6 {[%emt 0:00:07]} 37. Ne4 {[%emt 0:00:07]} Be5 {[%emt 0:00:33]} 38. Rxd2 {[%emt 0:00:21]} Kf7 {[%emt 0:00:06]} 39. f4 {[%emt 0:01:41]} Bg7 {[%emt 0:00:40]} 40. Ng3 {[%emt 0:00:09]} Re3 {[%emt 0:00:08]} 41. Rf3 {[%emt 0:00:08]} Re1 {[%emt 0:00:25]} 42. f5 {[%emt 0:06:20]} Bf6 {[%emt 0:00:28]} 43. Re2 {[%emt 0:02:00]} Ra1 {[%emt 0:00:22]} 44. a4 {[%emt 0:00:48]} Bd7 {[%emt 0:01:42]} 45. Re4 {[%emt 0:05:56]} Rb1 {[%emt 0:00:42]} 46. Rg4 {[%emt 0:01:17]} Rb2+ {[%emt 0:00:30]} 47. Kh3 {[%emt 0:00:05]} Be5 {[%emt 0:00:30]} 48. Nf1 {[%emt 0:00:56]} Bf6 {[%emt 0:00:45]} 49. Rg2 {[%emt 0:00:12]} Rb1 {[%emt 0:00:08]} 50. Ng3 {[%emt 0:00:03]} Rd1 {[%emt 0:01:02]} 51. Ne4 {[%emt 0:03:27]} Be5 {[%emt 0:00:41]} 52. Nf2 {[%emt 0:00:09]} Rf1 {[%emt 0:00:17]} 53. Kg4 {[%emt 0:00:35]} c6 {[%emt 0:01:16]} 54. Kh5 {[%emt 0:05:03]} cxd5 {[%emt 0:00:40]} 55. cxd5 {[%emt 0:00:02]} b5 {[%emt 0:00:26]} 56. f6 {[%emt 0:02:19]} Bxf6 {[%emt 0:01:06]} 57. Rg6 {[%emt 0:00:34]} Be8 {[%emt 0:03:05]} 58. Rgxf6+ {[%emt 0:03:31]} Kg7+ {[%emt 0:00:05]} 59. Kh4 {[%emt 0:00:03]} bxa4 {[%emt 0:00:12]} 60. bxa4 {[%emt 0:00:08]} Ra1 {[%emt 0:00:18]} 61. R6f4 {[%emt 0:00:32]} Bxa4 {[%emt 0:00:14]} 62. Rg3+ {[%emt 0:00:15]} Kh7 {[%emt 0:00:04]} 63. Rf7+ {[%emt 0:00:07]} Kh8 {[%emt 0:00:04]} 64. Ng4 {[%emt 0:00:56]} Rh1 {[%emt 0:00:24]} 65. Nf6 {[%emt 0:00:18]} Rxh2+ {[%emt 0:00:13]} 66. Rh3 {[%emt 0:01:26]} Rxh3+ {[%emt 0:00:11]} 67. Kxh3 {[%emt 0:00:01]} Bc2 {[%emt 0:00:07]} 68. Kh4 {[%emt 0:00:06]} Bg6 {[%emt 0:00:10]} 69. Ra7 {[%emt 0:00:05]} a4 {[%emt 0:00:04]} 70. Ng4 {[%emt 0:00:21]} a3 {[%emt 0:00:16]} 71. Nxh6 {[%emt 0:00:07]} a2 {[%emt 0:00:04]} 72. Rxa2 {[%emt 0:00:12]} Be4 {[%emt 0:00:06]} 73. Ra5 {[%emt 0:00:41]} Kg7 {[%emt 0:00:09]} 74. Kg5 {[%emt 0:00:33]} Bh7 {[%emt 0:01:10]} 75. Ra7+ {[%emt 0:02:52]} 1-0

[Event "Athens of East GM-Open 2019"]
[Site "Madurai"]
[Date "2019.08.18"]
[Round "10.19"]
[White "Koustuv Dash"]
[Black "Patil, Pratik"]
[Result "1-0"]
[ECO "D85"]
[WhiteElo "1846"]
[BlackElo "2216"]
[Annotator "ChessBase"]
[PlyCount "99"]
[EventDate "2019.08.11"]
[EventType "swiss"]
[EventCountry "IND"]
[SourceTitle "playchess.com"]
[Source "ChessBase"]
[SourceQuality "1"]
[TimeControl "5400+30"]

1. d4 {[%emt 0:00:00]} Nf6 {[%emt 0:00:00]} 2. c4 {[%emt 0:00:08]} g6 {[%emt 0:00:00]} 3. Nc3 {[%emt 0:00:20]} d5 {[%emt 0:00:00]} 4. cxd5 {[%emt 0:00:24]} Nxd5 {[%emt 0:00:00]} 5. e4 {[%emt 0:00:09]} Nxc3 {[%emt 0:00:00]} 6. bxc3 {[%emt 0:00:07]} Bg7 {[%emt 0:00:00]} 7. Nf3 {[%emt 0:00:09]} O-O {[%emt 0:00:45]} 8. Rb1 {[%emt 0:01:35]} c5 {[%emt 0:00:16]} 9. Be2 {[%emt 0:00:48]} b6 {[%emt 0:24:10]} 10. O-O {[%emt 0:09:41]} cxd4 {[%emt 0:01:02]} 11. cxd4 {[%emt 0:00:25]} Bb7 {[%emt 0:00:09]} 12. d5 {[%emt 0:04:42]} Nd7 {[%emt 0:05:30]} 13. Be3 {[%emt 0:04:28]} Rc8 {[%emt 0:03:33]} 14. Qa4 {[%emt 0:04:04]} a6 {[%emt 0:06:42]} 15. Rfc1 {[%emt 0:03:01]} Rxc1+ {[%emt 0:02:48]} 16. Rxc1 {[%emt 0:00:32]} b5 {[%emt 0:00:01]} 17. Qb4 {[%emt 0:00:40]} Nb6 {[%emt 0:04:02]} 18. Bxb6 {[%emt 0:04:30]} Qxb6 {[%emt 0:00:03]} 19. Qxe7 {[%emt 0:00:30]} b4 {[%emt 0:01:31]} 20. Qc7 {[%emt 0:03:56]} Qxc7 {[%emt 0:04:37]} 21. Rxc7 {[%emt 0:00:15]} Bc8 {[%emt 0:00:01]} 22. h3 {[%emt 0:04:11]} h6 {[%emt 0:01:41]} 23. Bc4 {[%emt 0:04:04]} a5 {[%emt 0:04:20]} 24. d6 {[%emt 0:01:28]} Be6 {[%emt 0:00:01]} 25. Bxe6 {[%emt 0:00:43]} fxe6 {[%emt 0:00:02]} 26. e5 {[%emt 0:00:50]} a4 {[%emt 0:00:27]} 27. d7 {[%emt 0:00:39]} b3 {[%emt 0:00:49]} 28. axb3 {[%emt 0:00:16]} a3 {[%emt 0:00:11]} 29. Ra7 {[%emt 0:04:02]} Rd8 {[%emt 0:01:43]} 30. b4 {[%emt 0:04:41]} Bf8 {[%emt 0:02:02]} 31. Nd4 {[%emt 0:01:26]} a2 {[%emt 0:00:01]} 32. Rxa2 {[%emt 0:05:38]} Rxd7 {[%emt 0:00:22]} 33. Nc6 {[%emt 0:01:51]} Rb7 {[%emt 0:01:48]} 34. Rb2 {[%emt 0:01:42]} Rb5 {[%emt 0:00:02]} 35. Kf1 {[%emt 0:03:13]} Kf7 {[%emt 0:01:17]} 36. f4 {[%emt 0:00:18]} Ke8 {[%emt 0:02:15]} 37. Nd4 {[%emt 0:03:49]} Rxb4 {[%emt 0:00:49]} 38. Rxb4 {[%emt 0:00:09]} Bxb4 {[%emt 0:00:10]} 39. Nxe6 {[%emt 0:00:02]} Ba5 {[%emt 0:00:22]} 40. Ke2 {[%emt 0:00:42]} Bb6 {[%emt 0:00:29]} 41. Kd3 {[%emt 0:00:11]} Ke7 {[%emt 0:00:16]} 42. Nd4 {[%emt 0:00:03]} h5 {[%emt 0:00:19]} 43. Ke4 {[%emt 0:00:08]} Bc7 {[%emt 0:00:05]} 44. g4 {[%emt 0:00:29]} hxg4 {[%emt 0:00:02]} 45. hxg4 {[%emt 0:00:01]} Kf7 {[%emt 0:00:12]} 46. Kd5 {[%emt 0:00:18]} Bb8 {[%emt 0:00:14]} 47. Nc6 {[%emt 0:00:31]} Bc7 {[%emt 0:00:01]} 48. Nd4 {[%emt 0:01:56]} Bb8 {[%emt 0:00:08]} 49. Kc6 {[%emt 0:00:21]} Ba7 {[%emt 0:00:58]} 50. Kd7 {[%emt 0:00:09]} 1-0